bitfinex-derivatives/quotes_SOLF0:USTF0_20250731
["timestamp","ask_amount","ask_price","bid_price","bid_amount"]
[1753998642849,3.23,174.07,173.98,4.57033924]
[1753998642850,14.32523308,174.06,173.98,109.92]
[1753998643053,5.34933308,174.05,174.02,3.19]
[1753998643258,5.34933308,174.04,174.02,3.19]
[1753998643458,8.9759,174.06,174.02,3.19]
[1753998643659,5.33301014,174.05,174.02,3.19]
[1753998643861,5.33301014,174.04,174.02,3.19]
[1753998644056,3.23,174.06,174.02,3.19]
[1753998644257,8.55871699,174.05,173.98,3.19]
[1753998644562,8.55871699,174.04,173.98,3.19]
[1753998644862,8.55871699,174.03,173.98,3.19]
[1753998645068,5.32871699,174.02,173.99,3.19]
[1753998645257,5.32235488,174.01,173.96,3.19]
[1753998645556,8.978,174.0,173.96,3.19]
[1753998646263,8.978,174.0,173.96,8.9392]
[1753998646463,8.978,174.0,173.97,3.19]
[1753998646763,5.7482,173.99,173.98,3.19]
[1753998646953,5.7482,173.99,173.95,385.94]
[1753998647152,6.78721997,174.03,173.96,3.19]
[1753998647357,3.23,174.01,173.97,3.19]
[1753998647552,3.23,174.01,173.95,385.94]
[1753998647553,5.31262035,174.0,173.95,385.94]
[1753998647762,3.23,173.98,173.96,3.19]
[1753998647963,3.23,174.02,173.96,3.19]
[1753998648164,4.71714892,174.07,173.93,0.59666667]
[1753998648165,6.78721997,174.0,173.94,3.19]
[1753998648367,5.7489,173.97,173.95,3.19]
[1753998648553,6.78721997,174.0,173.94,3.19]
[1753998648754,5.30976283,173.99,173.93,0.59666667]
[1753998648959,3.23,173.97,173.93,0.59666667]
[1753998649158,3.23,173.98,173.94,3.19]
[1753998649358,5.7488,173.97,173.95,3.19]
[1753998649663,8.9788,173.97,173.95,3.19]
[1753998650260,3.23,173.96,173.93,0.59666667]
[1753998650460,6.78721997,173.97,173.93,0.59666667]
[1753998650660,6.78721997,173.97,173.93,3.78666667]
[1753998650661,3.23,173.95,173.93,3.78666667]
[1753998650862,5.7497,173.95,173.93,3.78666667]
[1753998651060,3.23,173.96,173.94,3.19]
[1753998651257,6.78721997,173.99,173.94,3.19]
[1753998651466,3.23,173.97,173.94,3.19]
[1753998652058,6.78721997,173.99,173.94,3.19]
[1753998652261,5.7492,173.96,173.94,3.19]
[1753998652458,5.7492,173.96,173.93,0.59666667]
[1753998652660,8.9792,173.96,173.95,3.19]
[1753998657170,5.7491,173.97,173.95,3.19]
[1753998657369,3.23,173.98,173.96,3.19]
[1753998657872,3.23,173.97,173.96,3.19]
[1753998658373,8.9791,173.97,173.96,3.19]
[1753998658576,3.06,174.0,173.96,3.19]
[1753998658870,6.78721997,174.03,173.94,3.24]
[1753998659073,6.78721997,174.05,173.95,3.24]
[1753998659267,6.78721997,174.05,173.96,6.78721997]
[1753998659463,5.7467,174.04,174.01,3.24]
[1753998659967,5.7469,174.03,174.01,3.24]
[1753998660164,6.78721997,174.09,174.02,3.24]
[1753998660369,9.84721997,174.1,174.02,3.24]
[1753998660570,5.7454,174.08,174.02,3.24]
[1753998661171,6.78721997,174.13,174.07,3.24]
[1753998661372,5.04966629,174.12,174.08,3.24]
[1753998661574,4.71714892,174.19,174.03,6.78721997]
[1753998661773,6.78721997,174.14,174.08,5.745]
[1753998661984,3.06,174.13,174.09,3.24]
[1753998662279,3.06,174.13,174.04,3.24]
[1753998662477,3.06,174.13,174.03,6.78721997]
[1753998662478,6.78721997,174.14,174.08,3.24]
[1753998662774,9.2622122,174.13,174.03,6.78721997]
[1753998662974,5.7451,174.09,174.05,5.746]
[1753998663273,5.7451,174.09,174.06,3.24]
[1753998663470,3.06,174.12,174.06,3.24]
[1753998663872,3.06,174.12,174.06,5.7459]
[1753998664072,6.78721997,174.14,174.03,6.78721997]
[1753998664274,3.06,174.11,174.03,6.78721997]
[1753998664579,5.745,174.09,174.04,3.24]
[1753998664873,3.06,174.13,174.04,3.24]
[1753998666183,5.7446,174.1,174.04,3.24]
[1753998666779,5.7446,174.1,174.06,5.7456]
[1753998666981,3.06,174.11,174.03,6.78721997]
[1753998667175,6.78721997,174.12,174.08,3.24]
[1753998667373,3.06,174.1,174.09,3.24]
[1753998668280,8.8045,174.1,174.09,3.24]
[1753998668882,5.7454,174.08,174.07,3.24]
[1753998670182,3.06,174.08,174.02,3.24]
[1753998671080,3.06,174.06,174.02,3.24]
[1753998671276,4.5763818,174.07,174.02,3.24]
[1753998671488,3.06,174.05,174.02,3.24]
[1753998671879,5.7468,174.04,174.02,3.24]
[1753998673478,10.95786628,174.15,174.02,3.24]
[1753998673479,4.5763818,174.11,174.02,3.24]
[1753998673684,4.53498629,174.1,174.02,3.24]
[1753998673887,5.7454,174.08,174.04,5.7463]
[1753998674185,5.7454,174.08,174.06,3.24]
[1753998674384,5.7454,174.08,174.07,3.24]
[1753998678077,5.7455,174.07,174.06,3.24]
[1753998681887,5.7455,174.07,174.03,5.7467]
[1753998681888,5.7462,174.05,174.0,4.5763818]
[1753998682089,3.06,174.06,173.99,3.24]
[1753998682390,4.5763818,174.08,174.01,3.24]
[1753998682688,4.19407903,174.07,174.01,3.24]
[1753998682888,4.5763818,174.08,174.03,3.24]
[1753998683083,4.19708613,174.07,174.04,3.24]
[1753998683279,4.19708613,174.06,174.04,3.24]
[1753998683488,3.06,174.07,174.04,3.24]
[1753998683690,4.19822394,174.06,174.04,3.24]
[1753998683891,3.06,174.07,174.04,3.24]
[1753998684189,5.7463,174.05,174.04,3.24]
[1753998685987,5.7466,174.04,174.01,5.7474]
[1753998686188,3.06,174.07,174.02,5.7472]
[1753998686591,3.06,174.09,174.01,3.24]
[1753998686893,3.06,174.09,174.06,3.24]
[1753998687092,5.7454,174.08,174.07,3.24]
[1753998687394,9.94753473,174.08,174.07,3.24]
[1753998687789,5.7454,174.08,174.07,3.24]
[1753998687990,9.9484426,174.08,174.07,3.24]
[1753998688186,5.7454,174.08,174.07,3.24]
[1753998689793,5.7454,174.08,174.01,3.07]
[1753998689794,3.18,174.07,174.01,3.07]
[1753998690996,3.18,174.05,173.99,3.07]
[1753998691385,5.7467,174.04,174.01,5.7475]
[1753998691592,5.7467,174.04,174.03,3.07]
[1753998692802,5.7469,174.03,174.01,3.07]
[1753998693203,5.7469,174.03,174.0,5.7477]
[1753998693398,5.7469,174.03,174.02,3.07]
[1753998694904,7.7563818,174.08,174.02,3.07]
[1753998695406,5.7463,174.05,174.03,3.07]
[1753998695805,3.18,174.06,174.03,3.07]
[1753998696004,8.926,174.06,174.03,8.8167]
[1753998698106,8.926,174.06,174.03,5.7467]
[1753998698405,8.926,174.06,174.04,3.07]
[1753998698899,8.926,174.06,174.03,8.8167]
[1753998699108,8.926,174.06,174.04,3.07]
[1753998701005,3.18,174.04,174.03,3.07]
[1753998701402,3.18,174.04,174.01,3.07]
[1753998701600,8.9268,174.03,174.02,3.07]
[1753998701901,4.5763818,174.06,173.98,3.07]
[1753998702111,3.18,174.02,173.98,114.3483]
[1753998702310,3.18,174.05,173.99,3.07]
[1753998702508,3.18,174.03,173.98,3.07]
[1753998702810,8.9282,173.99,173.98,3.07]
[1753998703511,5.7491,173.97,173.96,3.07]
[1753998704312,8.9291,173.97,173.96,3.07]
[1753998704610,3.18,174.03,173.95,4.5763818]
[1753998704804,4.2883187,174.02,173.99,3.07]
[1753998705007,4.28796207,174.01,173.99,3.07]
[1753998705204,5.7474,174.02,173.99,3.07]
[1753998705409,4.28590674,174.01,173.98,3.07]
[1753998705613,5.7478,174.01,173.98,3.07]
[1753998706706,5.7478,174.01,174.0,3.07]
[1753998707305,10.03369928,174.01,174.0,3.07]
[1753998707514,5.7478,174.01,174.0,3.07]
[1753998708109,5.7472,174.02,174.0,3.07]
[1753998709413,4.5763818,174.07,174.01,3.07]
[1753998709610,3.18,174.05,174.01,3.07]
[1753998709911,7.47000622,174.04,174.01,3.07]
[1753998710107,4.29000622,174.03,174.01,3.07]
[1753998710312,3.18,174.06,174.0,108.66]
[1753998710512,4.29225135,174.05,174.02,3.07]
[1753998710707,4.29225135,174.04,174.02,3.07]
[1753998710914,4.29225135,174.03,174.02,3.07]
[1753998711907,4.29225135,174.03,173.99,4.5763818]
[1753998712106,3.18,174.01,174.0,3.07]
[1753998712311,7.47402231,174.01,174.0,3.07]
[1753998713015,10.04182231,174.01,173.99,3.07]
[1753998713215,5.7478,174.01,173.99,3.07]
[1753998713412,5.7475,174.01,174.0,3.07]
[1753998713615,10.04249423,174.01,174.0,3.07]
[1753998713815,13.22249423,174.01,174.0,3.07]
[1753998714320,10.04249423,174.01,174.0,3.07]
[1753998714817,4.29499423,174.01,173.98,111.75]
[1753998715018,3.18,174.0,173.99,3.07]
[1753998715218,5.7478,174.0,173.99,3.07]
[1753998715417,7.4774736,174.0,173.97,111.67]
[1753998715617,3.18,174.0,173.97,111.67]
[1753998715809,8.9281,173.99,173.98,3.07]
[1753998716014,3.18,173.98,173.96,111.67]
[1753998716208,3.18,173.98,173.96,108.6]
[1753998716414,3.18,173.95,173.94,3.07]
[1753998717016,8.9297,173.95,173.94,3.07]
[1753998717220,3.18,173.94,173.93,112.24666667]
[1753998718324,8.9298,173.94,173.93,112.24666667]
[1753998719514,8.8698,173.94,173.93,0.59666667]
[1753998723922,8.8696,173.95,173.94,3.24]
[1753998727927,5.7498,173.94,173.93,0.59666667]
[1753998728129,8.8698,173.94,173.93,0.59666667]
[1753998728325,8.8698,173.94,173.93,3.83666667]
[1753998729431,8.8698,173.94,173.93,0.59666667]
[1753998732934,8.8711,173.9,173.89,3.24]
[1753998733332,3.12,173.89,173.87,3.24]
[1753998733530,4.5763818,173.89,173.76,3.66666667]
[1753998733837,3.12,173.83,173.77,3.24]
[1753998734027,5.754,173.82,173.76,3.66666667]
[1753998734226,3.12,173.83,173.76,3.66666667]
[1753998734436,3.12,173.83,173.79,5.7547]
[1753998734833,5.754,173.82,173.79,5.7547]
[1753998735026,4.5763818,173.84,173.8,3.24]
[1753998735232,3.12,173.83,173.8,3.24]
[1753998735637,3.12,173.83,173.79,5.7547]
[1753998735638,8.8735,173.83,173.79,5.7547]
[1753998735839,8.8735,173.83,173.81,3.24]
[1753998736237,8.8735,173.83,173.8,8.9944]
[1753998736841,3.12,173.83,173.81,8.9941]
[1753998737040,10.3295818,173.84,173.82,3.24]
[1753998737234,13.4495818,173.84,173.82,3.24]
[1753998738338,4.5763818,173.84,173.82,5.7537]
[1753998738537,3.12,173.85,173.82,5.7537]
[1753998738837,3.12,173.85,173.83,3.24]
[1753998739144,3.12,173.84,173.82,5.7537]
[1753998739441,7.6963818,173.86,173.83,8.9934]
[1753998740639,7.6963818,173.86,173.82,5.7536]
[1753998740942,7.6963818,173.86,173.82,8.9936]
[1753998741342,7.6963818,173.86,173.83,3.24]
[1753998741343,5.753,173.85,173.83,3.24]
[1753998741539,3.12,173.84,173.83,3.24]
[1753998742044,5.7531,173.84,173.83,3.24]
[1753998743046,8.8731,173.84,173.83,3.24]
[1753998743241,5.7535,173.83,173.8,5.7543]
[1753998743435,5.7535,173.83,173.8,8.9943]
[1753998743636,3.12,173.82,173.8,8.9943]
[1753998743836,4.5763818,173.84,173.76,3.66666667]
[1753998744047,3.12,173.83,173.77,3.24]
[1753998744547,4.5763818,173.84,173.77,3.24]
[1753998744738,13.4496818,173.84,173.81,3.24]
[1753998745142,7.6963818,173.84,173.81,3.24]
[1753998745343,5.7534,173.83,173.81,3.24]
[1753998745847,8.8734,173.83,173.81,3.24]
[1753998747247,5.7534,173.83,173.81,3.24]
[1753998748045,31.9074224,174.15,173.76,3.66666667]
[1753998748046,3.12,173.81,173.76,3.66666667]
[1753998748252,4.5763818,173.8,173.76,6.83666667]
[1753998748553,3.28,173.78,173.77,3.17]
[1753998748749,9.0354,173.78,173.76,3.66666667]
[1753998749048,3.28,173.77,173.76,6.83666667]
[1753998749244,9.0354,173.77,173.76,6.83666667]
[1753998749445,9.0354,173.77,173.76,3.66666667]
[1753998749745,9.0354,173.77,173.76,6.83666667]
[1753998750846,268.0,173.76,173.45,624.8293]
[1753998751049,4.5763818,173.7,173.6,3.17]
[1753998751449,4.5763818,173.7,173.61,3.17]
[1753998751750,4.5763818,173.7,173.63,3.17]
[1753998752046,5.7581,173.69,173.66,3.17]
[1753998752248,5.7581,173.69,173.63,3.17]
[1753998752446,5.7582,173.69,173.65,5.7592]
[1753998752653,4.5763818,173.72,173.67,3.17]
[1753998752851,4.5763818,173.72,173.62,3.17]
[1753998753051,5.7583,173.69,173.66,3.17]
[1753998753252,4.5763818,173.72,173.6,3.17]
[1753998753454,4.5763818,173.72,173.62,3.17]
[1753998753652,5.7579,173.7,173.67,3.17]
[1753998753848,4.5763818,173.7,173.6,3.17]
[1753998754053,4.5763818,173.7,173.62,3.17]
[1753998754453,5.7586,173.68,173.65,3.17]
[1753998754653,4.5763818,173.7,173.64,5.7595]
[1753998754850,5.7586,173.68,173.64,5.7595]
[1753998755052,5.7586,173.68,173.67,3.17]
[1753998755246,5.7586,173.68,173.64,5.7595]
[1753998755454,4.5763818,173.7,173.64,3.17]
[1753998756154,4.5763818,173.68,173.6,4.5763818]
[1753998756356,4.5763818,173.68,173.59,3.66666667]
[1753998756357,4.5763818,173.68,173.61,3.17]
[1753998756751,4.5763818,173.66,173.61,3.17]
[1753998757052,4.78380533,173.73,173.6,3.17]
[1753998757251,4.28485655,173.72,173.6,3.17]
[1753998757457,5.7603,173.63,173.6,3.17]
[1753998757656,5.7603,173.63,173.62,3.17]
[1753998758456,5.7605,173.62,173.6,3.17]
[1753998758654,5.7605,173.62,173.59,9.42796667]
[1753998758960,5.7605,173.62,173.59,12.59796667]
[1753998759258,4.5763818,173.63,173.59,6.83666667]
[1753998759455,4.5763818,173.61,173.59,3.66666667]
[1753998759656,9.1527636,173.61,173.47,1.00276625]
[1753998759856,4.27423501,173.6,173.48,3.17]
[1753998760054,4.5763818,173.53,173.45,3.17]
[1753998760455,4.5763818,173.55,173.46,4.5763818]
[1753998760658,4.5763818,173.59,173.52,3.17]
[1753998760960,17.89898448,173.67,173.45,3.17]
[1753998760961,4.28113798,173.58,173.45,3.17]
[1753998761154,4.5763818,173.61,173.52,3.17]
[1753998761353,4.5763818,173.59,173.52,3.17]
[1753998761555,4.5763818,173.59,173.45,3.17]
[1753998761751,5.7623,173.57,173.52,5.7637]
[1753998762055,5.7623,173.57,173.53,3.17]
[1753998762257,5.7626,173.56,173.54,3.17]
[1753998763654,5.7626,173.56,173.55,3.17]
[1753998763852,4.26618446,173.56,173.55,3.17]
[1753998764048,4.26547198,173.56,173.55,3.17]
[1753998764449,5.7618,173.58,173.55,3.17]
[1753998764747,4.26265574,173.57,173.55,3.17]
[1753998764955,4.26265574,173.56,173.55,3.17]
[1753998765359,4.5763818,173.59,173.55,3.17]
[1753998765559,4.2598062,173.58,173.55,3.17]
[1753998765760,4.2598062,173.57,173.55,3.17]
[1753998766059,4.5763818,173.59,173.55,3.17]
[1753998766253,5.7624,173.56,173.55,3.17]
[1753998768554,5.7629,173.55,173.52,3.17]
[1753998770562,4.5763818,173.57,173.49,3.17]
[1753998770765,4.78380533,173.61,173.5,5.7644]
[1753998770766,4.5763818,173.55,173.5,5.7644]
[1753998770952,4.5763818,173.55,173.51,3.17]
[1753998771561,4.78380533,173.6,173.51,3.17]
[1753998771754,4.5763818,173.54,173.52,3.17]
[1753998771953,6.38148448,173.63,173.44,4.20731463]
[1753998771954,4.78380533,173.65,173.51,3.17]
[1753998772155,4.5763818,173.57,173.51,3.17]
[1753998772361,4.5763818,173.55,173.45,3.17]
[1753998772559,5.7636,173.53,173.49,3.17]
[1753998773661,4.5763818,173.51,173.44,4.20731463]
[1753998773966,4.5763818,173.51,173.45,3.17]
[1753998774258,10.3406818,173.51,173.48,3.17]
[1753998774461,4.5763818,173.51,173.45,3.17]
[1753998774959,4.5763818,173.51,173.47,3.17]
[1753998775158,4.5763818,173.51,173.48,3.17]
[1753998775367,5.7644,173.5,173.49,3.17]
[1753998775866,5.7644,173.5,173.47,3.17]
[1753998776069,5.7647,173.49,173.48,3.17]
[1753998776362,4.5763818,173.49,173.45,3.17]
[1753998776565,5.7654,173.47,173.46,3.17]
[1753998777254,5.766,173.45,173.44,7.37731463]
[1753998777456,5.766,173.45,173.44,4.20731463]
[1753998778861,5.766,173.45,173.44,7.48731463]
[1753998779062,5.766,173.45,173.44,4.20731463]
[1753998779659,10.3423818,173.45,173.44,4.20731463]
[1753998779863,5.766,173.45,173.44,4.20731463]
[1753998780066,10.3423818,173.45,173.44,4.20731463]
[1753998780270,5.767,173.42,173.41,3.66666667]
[1753998780463,10.3433818,173.42,173.41,3.66666667]
[1753998781664,8.81784959,173.42,173.31,3.28]
[1753998781868,4.5763818,173.39,173.32,3.28]
[1753998782070,4.5763818,173.39,173.24,99.30464203]
[1753998782071,4.5763818,173.35,173.25,3.28]
[1753998782269,4.5763818,173.35,173.29,5.7711]
[1753998782573,4.5763818,173.36,173.27,3.28]
[1753998782969,4.5763818,173.36,173.3,3.28]
[1753998783169,4.5763818,173.34,173.31,3.28]
[1753998783370,4.5763818,173.34,173.32,3.28]
[1753998783564,4.5763818,173.34,173.26,4.5763818]
[1753998783772,4.5763818,173.34,173.27,3.28]
[1753998784070,4.5763818,173.34,173.3,3.28]
[1753998784271,4.5763818,173.32,173.31,3.28]
[1753998784475,110.84,173.41,173.31,3.28]
[1753998784669,4.5763818,173.34,173.31,3.28]
[1753998784862,4.5763818,173.34,173.24,3.66666667]
[1753998785171,110.84,173.41,173.25,3.28]
[1753998785374,5.771,173.31,173.28,3.28]
[1753998785573,4.5763818,173.32,173.28,3.28]
[1753998786172,4.5763818,173.32,173.25,3.28]
[1753998786770,4.5763818,173.29,173.25,3.28]
[1753998787169,5.772,173.27,173.25,3.28]
[1753998787569,4.5763818,173.29,173.24,3.66666667]
[1753998787764,4.5763818,173.29,173.25,3.28]
[1753998787965,16.32010533,173.39,173.25,3.28]
[1753998788275,4.5763818,173.27,173.25,3.28]
[1753998788469,5.7727,173.25,173.24,6.94666667]
[1753998788671,5.7727,173.25,173.24,3.66666667]
[1753998789276,5.7727,173.25,173.14,1.00474946]
[1753998789277,111.44,173.29,173.14,1.00474946]
[1753998789572,111.44,173.29,173.07,3.66666667]
[1753998789573,4.5763818,173.15,173.07,3.66666667]
[1753998789774,4.5763818,173.15,173.13,7.53160215]
[1753998789969,4.5763818,173.15,173.13,4.25160215]
[1753998790170,4.5763818,173.19,173.14,3.28]
[1753998790370,4.5763818,173.19,173.16,3.28]
[1753998790566,4.78380533,173.32,173.16,3.28]
[1753998790765,4.5763818,173.23,173.16,3.28]
[1753998791072,4.5763818,173.27,173.18,3.28]
[1753998791274,4.5763818,173.26,173.18,3.28]
[1753998791474,4.5763818,173.25,173.14,3.28]
[1753998791975,4.5763818,173.2,173.14,3.28]
[1753998792775,5.7754,173.17,173.14,3.28]
[1753998792976,4.5763818,173.2,173.14,3.28]
[1753998793177,4.5763818,173.18,173.14,3.28]
[1753998793378,5.7757,173.16,173.14,3.28]
[1753998793576,4.5763818,173.15,173.13,4.25160215]
[1753998793771,5.7763,173.14,173.13,4.25160215]
[1753998793976,5.7763,173.14,173.13,7.53160215]
[1753998794175,10.3526818,173.14,173.13,7.53160215]
[1753998794375,5.7763,173.14,173.13,7.53160215]
[1753998795279,119.9763818,173.14,173.02,3.28]
[1753998795480,4.5763818,173.03,172.97,3.28]
[1753998795682,4.5763818,173.04,172.97,3.28]
[1753998795978,4.5763818,173.08,172.97,3.28]
[1753998796175,4.5763818,173.1,172.99,3.28]
[1753998796377,4.5763818,173.02,172.97,3.28]
[1753998796580,4.5763818,173.04,172.97,3.28]
[1753998796773,6.86182076,173.09,173.0,3.28]
[1753998797471,127.62562609,173.2,173.01,3.28]
[1753998797675,4.20644993,173.19,173.01,3.28]
[1753998797872,5.7788,173.07,173.02,5.7803]
[1753998798077,6.86182076,173.12,173.03,3.28]
[1753998798278,6.86182076,173.1,173.03,3.28]
[1753998798872,124.46182076,173.2,173.03,3.28]
[1753998799077,6.86182076,173.08,173.04,3.28]
[1753998799277,6.86182076,173.05,172.98,3.28]
[1753998799683,6.86182076,173.1,172.96,0.1]
[1753998799684,6.86182076,173.01,172.96,0.1]
[1753998799881,6.86182076,172.98,172.96,0.1]
[1753998800082,6.86182076,172.97,172.92,3.28]
[1753998800385,6.86182076,172.97,172.9,6.94666667]
[1753998800682,6.86182076,172.94,172.91,3.28]
[1753998801077,5.7837,172.92,172.91,3.28]
[1753998801385,6.86182076,172.92,172.83,3.28]
[1753998801684,6.86182076,172.9,172.86,3.28]
[1753998801979,6.86182076,172.9,172.83,3.28]
[1753998802783,388.3,172.97,172.83,3.28]
[1753998802982,6.86182076,172.9,172.83,3.28]
[1753998803576,6.86182076,172.87,172.84,3.28]
[1753998803778,6.86182076,172.87,172.85,3.28]
[1753998803986,5.786,172.86,172.85,3.28]
[1753998804182,6.86182076,172.87,172.85,3.28]
[1753998804387,388.3,172.97,172.83,3.28]
[1753998804686,5.786,172.86,172.85,3.28]
[1753998804883,6.86182076,172.87,172.82,7.57588967]
[1753998805187,6.86182076,172.87,172.83,3.28]
[1753998805782,5.7864,172.84,172.83,3.28]
[1753998805978,6.86182076,172.87,172.82,4.29588967]
[1753998806184,6.86182076,172.87,172.83,3.28]
[1753998806879,6.86182076,172.84,172.82,4.29588967]
[1753998807382,6.86182076,172.87,172.83,3.28]
[1753998807890,6.86182076,172.87,172.82,4.29588967]
[1753998808084,6.86182076,172.87,172.84,3.28]
[1753998808478,6.86182076,172.87,172.82,4.29588967]
[1753998808788,6.86182076,172.83,172.82,4.29588967]
[1753998808989,388.3,172.97,172.82,4.29588967]
[1753998809192,5.7867,172.83,172.82,4.29588967]
[1753998809583,388.3,172.97,172.82,4.29588967]
[1753998809584,5.786,172.86,172.82,4.29588967]
[1753998809785,6.86182076,172.87,172.83,3.14]
[1753998810088,5.7853,172.88,172.83,3.14]
[1753998810287,6.86182076,172.89,172.83,3.14]
[1753998810480,388.3,172.97,172.83,3.14]
[1753998810688,5.7846,172.9,172.85,5.786]
[1753998810887,5.7846,172.9,172.86,3.14]
[1753998811091,6.86182076,172.91,172.86,3.14]
[1753998811383,6.86182076,172.94,172.86,3.14]
[1753998811791,5.784,172.92,172.86,3.14]
[1753998811986,6.86182076,172.94,172.86,3.14]
[1753998812891,6.86182076,172.94,172.87,3.14]
[1753998812892,5.7843,172.9,172.87,3.14]
[1753998813095,6.86182076,173.0,172.87,3.14]
[1753998813096,6.86182076,172.95,172.87,3.14]
[1753998813291,121.76,173.03,172.87,3.14]
[1753998813487,6.86182076,172.95,172.88,3.14]
[1753998813889,5.784,172.92,172.88,3.14]
[1753998814796,5.784,172.91,172.88,3.14]
[1753998814996,6.86182076,172.96,172.88,3.14]
[1753998815189,121.76,173.03,172.88,3.14]
[1753998815384,5.7841,172.91,172.88,3.14]
[1753998815691,6.86182076,172.97,172.88,3.14]
[1753998815896,388.72,173.07,172.87,6.86182076]
[1753998815897,5.7826,172.96,172.93,3.14]
[1753998816297,6.86182076,173.0,172.93,3.14]
[1753998816601,3.06,173.05,172.95,3.14]
[1753998816796,6.86182076,173.04,172.95,3.14]
[1753998816996,5.7803,173.02,172.95,3.14]
[1753998817302,6.86182076,173.07,172.95,3.14]
[1753998817497,5.7792,173.06,173.01,5.7804]
[1753998817704,6.86182076,173.1,173.02,3.14]
[1753998818003,5.7786,173.08,173.02,3.14]
[1753998818501,6.86182076,173.14,173.04,3.14]
[1753998818801,4.18142599,173.13,173.08,3.14]
[1753998819102,3.06,173.15,173.08,3.14]
[1753998819293,6.38148448,173.22,173.09,3.14]
[1753998819294,3.06,173.17,173.09,3.14]
[1753998819499,9.92182076,173.17,173.09,3.14]
[1753998819695,5.7757,173.16,173.11,3.14]
[1753998819902,5.7757,173.16,173.1,5.7774]
[1753998819903,6.86182076,173.17,173.1,5.7774]
[1753998820100,6.86182076,173.17,173.07,3.14]
[1753998820300,5.7759,173.16,173.11,3.14]
[1753998820693,5.7747,173.19,173.13,5.7764]
[1753998821001,9.92182076,173.2,173.16,3.14]
[1753998821002,4.13278693,173.18,173.16,3.14]
[1753998821197,3.06,173.2,173.17,3.14]
[1753998821392,4.13803427,173.19,173.15,5.776]
[1753998821600,4.13967488,173.18,173.17,3.14]
[1753998821800,5.7739,173.22,173.18,3.14]
[1753998821995,4.13992006,173.21,173.19,3.14]
[1753998822199,8.8339,173.22,173.19,3.14]
[1753998822200,4.13992006,173.2,173.19,3.14]
[1753998822903,4.13992006,173.2,173.19,10.00182076]
[1753998823105,5.7731,173.24,173.19,6.86182076]
[1753998823303,3.06,173.22,173.13,5.7764]
[1753998823507,5.7748,173.19,173.14,3.14]
[1753998823710,5.7748,173.19,173.13,6.86182076]
[1753998823907,5.7744,173.2,173.16,6.86182076]
[1753998824208,4.62020133,173.3,173.2,3.14]
[1753998824403,8.78018031,173.29,173.24,6.86182076]
[1753998824600,4.15997898,173.28,173.25,3.14]
[1753998824906,4.15997898,173.28,173.27,10.00182076]
[1753998825100,4.15997898,173.3,173.28,3.14]
[1753998825306,4.16184135,173.29,173.28,3.14]
[1753998825498,4.64488887,173.35,173.3,5.7707]
[1753998825701,7.70488887,173.37,173.2,124.92]
[1753998826001,3.06,173.37,173.32,6.86182076]
[1753998826203,8.829,173.37,173.32,6.86182076]
[1753998826405,3.06,173.37,173.34,3.14]
[1753998826808,3.06,173.37,173.32,5.7702]
[1753998827105,3.06,173.37,173.33,3.14]
[1753998827304,8.8287,173.37,173.34,3.14]
[1753998827510,3.06,173.39,173.34,3.14]
[1753998827713,3.06,173.38,173.34,3.14]